fUST/lending_fUST_20250713
["ID","MTS","AMOUNT","RATE_DAILY","PERIOD"]
[371544296,1752342670399,-460.0,0.00019178,2]
[371544297,1752342670408,-700.96,0.00019178,2]
[371544298,1752342670418,-484.14,0.00019178,2]
[371544299,1752342670427,-1811.02,0.00019178,2]
[371544300,1752342670437,-662.41,0.00019178,2]
[371544301,1752342670448,-460.0,0.00019178,2]
[371544302,1752342670458,-2662.91,0.00019178,2]
[371544303,1752342670467,-460.0,0.00019178,2]
[371544304,1752342670477,-244.73576238,0.00019178,2]
[371544305,1752342670486,-460.0,0.00019178,2]
[371544306,1752342670496,-460.0,0.00019178,2]
[371544307,1752342670505,-460.0,0.00019178,2]
[371544308,1752342670515,-663.87,0.00019178,2]
[371544309,1752342670524,-460.0,0.00019178,2]
[371544310,1752342670533,-460.0,0.00019178,2]
[371544311,1752342670542,-1174.19,0.00019178,2]
[371544312,1752342670551,-460.0,0.00019178,2]
[371544313,1752342670561,-417.986802,0.00019178,2]
[371544314,1752342670570,-460.0,0.00019178,2]
[371544315,1752342670579,-524.87,0.00019178,2]
[371544316,1752342670589,-460.0,0.00019178,2]
[371544317,1752342670598,-657.53,0.00019178,2]
[371544318,1752342670607,-417.986802,0.00019178,2]
[371544319,1752342670617,-2444.99,0.00019178,2]
[371544320,1752342670626,-460.0,0.00019178,2]
[371544321,1752342670635,-460.0,0.00019178,2]
[371544322,1752342670644,-484.23,0.00019178,2]
[371544323,1752342670654,-4019.98,0.00019178,2]
[371544324,1752342670663,-460.0,0.00019178,2]
[371544325,1752342670672,-460.0,0.00019178,2]
[371544326,1752342670682,-460.0,0.00019178,2]
[371544327,1752342670693,-754.13,0.00019178,2]
[371544328,1752342670703,-460.0,0.00019178,2]
[371544329,1752342670712,-2667.23,0.00019178,2]
[371544330,1752342670721,-618.79,0.00019178,2]
[371544331,1752342670730,-468.03,0.00019178,2]
[371544332,1752342670739,-469.56,0.00019178,2]
[371544333,1752342670749,-981.16,0.00019178,2]
[371544334,1752342670759,-460.0,0.00019178,2]
[371544335,1752342670768,-460.0,0.00019178,2]
[371544336,1752342670777,-460.0,0.00019178,2]
[371544337,1752342670787,-460.0,0.00019178,2]
[371544338,1752342670796,-460.0,0.00019178,2]
[371544339,1752342670806,-460.0,0.00019178,2]
[371544340,1752342670815,-460.0,0.00019178,2]
[371544341,1752342670825,-1433.31,0.00019178,2]
[371544342,1752342670834,-460.0,0.00019178,2]
[371544343,1752342670844,-460.0,0.00019178,2]
[371544344,1752342670853,-509.58,0.00019178,2]
[371544345,1752342670863,-661.767978,0.00019178,2]
[371544346,1752342670873,-666.0,0.00019178,2]
[371544347,1752342670882,-5000.0,0.00019178,2]
[371544348,1752342670892,-5000.0,0.00019178,2]
[371544349,1752342670901,-5000.0,0.00019178,2]
[371544350,1752342670911,-5000.0,0.00019178,2]
[371544351,1752342670920,-5000.0,0.00019178,2]
[371544352,1752342670930,-5000.0,0.00019178,2]
[371544353,1752342670940,-2010.35104184,0.00019178,2]
[371544354,1752342670949,-29944.87,0.000192,2]
[371544355,1752342670959,-3745.95,0.000192,2]
[371544356,1752342670969,-541.72,0.000192,2]
[371544357,1752342670978,-151.85317382,0.00019205,2]
[371544358,1752342670991,-151.0,0.00019205,2]
[371544359,1752342671001,-500.97108494,0.0001921,2]
[371544360,1752342671011,-500.0,0.0001921,2]
[371544361,1752342671020,-500.0,0.0001921,2]
[371544362,1752342671031,-498.4323488,0.0001921,2]
[371544363,1752342671041,-500.0,0.0001921,2]
[371544364,1752342671051,-500.0,0.0001921,2]
[371544365,1752342671068,-500.0,0.0001921,2]
[371544366,1752342671088,-258.0,0.0001921,2]
[371544367,1752342671103,-500.0,0.0001921,2]
[371544368,1752342671113,-500.0,0.0001921,2]
[371544369,1752342671123,-500.0,0.0001921,2]
[371544370,1752342671133,-500.0,0.0001921,2]
[371544371,1752342671142,-500.0,0.0001921,2]
[371544372,1752342671153,-157.91354213,0.0001921,2]
[371544373,1752342671163,-151.0,0.00019233,2]
[371544374,1752342671172,-151.0,0.0001926,2]
[371544375,1752342671182,-151.0,0.0001926,2]
[371544376,1752342671194,-199.04772792,0.0001926,2]
[371544377,1752342671204,-151.0,0.00019287,2]
[371544378,1752342671214,-151.0,0.00019287,2]
[371544379,1752342671223,-151.0,0.00019315,2]
[371544380,1752342671233,-201.14469127,0.00019315,2]
[371544381,1752342671242,-237.432285,0.00019329,2]
[371544382,1752342671252,-151.0,0.00019329,2]
[371544383,1752342671262,-151.0,0.00019329,2]
[371544384,1752342671271,-151.0,0.00019329,2]
[371544385,1752342671281,-151.0,0.00019329,2]
[371544386,1752342671292,-151.0,0.00019329,2]
[371544387,1752342671301,-435.672734,0.00019329,2]
[371544388,1752342671311,-435.672734,0.00019329,2]
[371544389,1752342671320,-151.0,0.00019329,2]
[371544390,1752342671330,-151.0,0.00019329,2]
[371544391,1752342671340,-504.357053,0.00019329,2]
[371544392,1752342671349,-504.357053,0.00019329,2]
[371544393,1752342671358,-347.382821,0.00019329,2]
[371544394,1752342671369,-347.382821,0.00019329,2]
[371544395,1752342671378,-151.000002,0.00019329,2]
[371544396,1752342671388,-100000.0,0.00019329,2]
[371544397,1752342671398,-151.0,0.00019342,2]
[371544398,1752342671407,-500.0,0.00019343,2]
[371544399,1752342671416,-504.12455157,0.00019343,2]
[371544400,1752342671426,-502.93992605,0.00019343,2]
[371544401,1752342671435,-500.0,0.00019343,2]
[371544402,1752342671447,-502.54304723,0.00019343,2]
[371544403,1752342671456,-151.0,0.0001937,2]
[371544404,1752342671466,-1961.7256578,0.00019383,2]
[371544405,1752342671476,-245.0,0.00019397,2]
[371544406,1752342671485,-460.0,0.00019452,2]
[371544407,1752342671495,-460.0,0.00019452,2]
[371544408,1752342671505,-153.37,0.00019452,2]
[371544409,1752342671514,-498.78,0.00019452,2]
[371544410,1752342671524,-431.20322949,0.00019452,2]
[371544411,1752342671533,-460.0,0.00019452,2]
[371544412,1752342671543,-460.0,0.00019452,2]
[371544413,1752342671552,-460.0,0.00019452,2]
[371544414,1752342671562,-460.0,0.00019452,2]
[371544415,1752342671572,-460.0,0.00019452,2]
[371544416,1752342671581,-708.97,0.00019452,2]
[371544417,1752342671591,-648.84,0.00019452,2]
[371544418,1752342671600,-460.0,0.00019452,2]
[371544419,1752342671609,-460.0,0.00019452,2]
[371544420,1752342671619,-686.51,0.00019452,2]
[371544421,1752342671629,-460.0,0.00019452,2]
[371544422,1752342671640,-460.0,0.00019452,2]
[371544423,1752342671649,-460.0,0.00019452,2]
[371544424,1752342671658,-460.0,0.00019452,2]
[371544425,1752342671667,-687.54,0.00019452,2]
[371544426,1752342671677,-460.0,0.00019452,2]
[371544427,1752342671687,-460.0,0.00019452,2]
[371544428,1752342671696,-460.0,0.00019452,2]
[371544429,1752342671706,-365.33,0.00019452,2]
[371544430,1752342671716,-753.34,0.00019452,2]
[371544431,1752342671725,-460.0,0.00019452,2]
[371544432,1752342671734,-460.0,0.00019452,2]
[371544433,1752342671743,-237.77885004,0.00019452,2]
[371544434,1752342671753,-713.78,0.00019452,2]
[371544435,1752342671763,-460.0,0.00019452,2]
[371544436,1752342671773,-460.0,0.00019452,2]
[371544437,1752342671782,-700.82,0.00019452,2]
[371544438,1752342671791,-840.0,0.00019452,2]
[371544439,1752342671800,-515.47192529,0.00019452,2]
[371544440,1752342671810,-5141.64,0.00019452,2]
[371544441,1752342671819,-460.0,0.00019452,2]
[371544442,1752342671828,-460.0,0.00019452,2]
[371544443,1752342671838,-460.0,0.00019452,2]
[371544444,1752342671847,-3105.07,0.00019452,2]
[371544445,1752342671856,-460.0,0.00019452,2]
[371544446,1752342671866,-460.0,0.00019452,2]
[371544447,1752342671875,-1400.32,0.00019452,2]
[371544448,1752342671885,-460.0,0.00019452,2]
[371544449,1752342671895,-460.0,0.00019452,2]
[371544450,1752342671904,-460.0,0.00019452,2]
[371544451,1752342671914,-593.56,0.00019452,2]
[371544452,1752342671923,-1824.88,0.00019452,2]
[371544453,1752342671933,-460.0,0.00019452,2]
[371544454,1752342671943,-1262.74,0.00019452,2]
[371544455,1752342671952,-460.0,0.00019452,2]
[371544456,1752342671961,-1502.81,0.00019452,2]
[371544457,1752342671970,-784.23,0.00019452,2]
[371544458,1752342671979,-383.94856345,0.00019452,2]
[371544459,1752342671991,-796.69,0.00019452,2]
[371544460,1752342672001,-460.0,0.00019452,2]
[371544461,1752342672010,-460.0,0.00019452,2]
[371544462,1752342672019,-460.0,0.00019452,2]
[371544463,1752342672029,-460.0,0.00019452,2]
[371544464,1752342672038,-460.0,0.00019452,2]
[371544465,1752342672047,-476.85,0.00019452,2]
[371544466,1752342672056,-460.0,0.00019452,2]
[371544467,1752342672067,-460.0,0.00019452,2]
[371544468,1752342672077,-700.96,0.00019452,2]
[371544469,1752342672086,-484.14,0.00019452,2]
[371544470,1752342672096,-1811.02,0.00019452,2]
[371544471,1752342672105,-151.0,0.00019452,2]
[371544472,1752342672114,-662.41,0.00019452,2]
[371544473,1752342672125,-460.0,0.00019452,2]
[371544474,1752342672134,-2662.91,0.00019452,2]
[371544475,1752342672144,-460.0,0.00019452,2]
[371544476,1752342672154,-460.0,0.00019452,2]
[371544477,1752342672260,-460.0,0.00019452,2]
[371544478,1752342672269,-555.8,0.00019452,2]
[371544479,1752342672278,-663.87,0.00019452,2]
[371544480,1752342672288,-460.0,0.00019452,2]
[371544481,1752342672298,-460.0,0.00019452,2]
[371544482,1752342672307,-1174.19,0.00019452,2]
[371544483,1752342672317,-151.0,0.00019452,2]
[371544484,1752342672327,-600.66698098,0.00019452,2]
[371544485,1752342672337,-460.0,0.00019452,2]
[371544486,1752342672347,-151.0,0.00019452,2]
[371544487,1752342672357,-524.87,0.00019452,2]
[371544488,1752342672367,-460.0,0.00019452,2]
[371544489,1752342672377,-657.53,0.00019452,2]
[371544490,1752342672387,-151.0,0.00019452,2]
[371544491,1752342672397,-2444.99,0.00019452,2]
[371544492,1752342672406,-305.02908202,0.00019452,2]
[371544493,1752342672416,-460.0,0.00019452,2]
[371544494,1752342672426,-484.23,0.00019452,2]
[371544495,1752342672435,-4019.98,0.00019452,2]
[371544496,1752342672446,-460.0,0.00019452,2]
[371544497,1752342672456,-460.0,0.00019452,2]
[371544498,1752342672466,-151.0,0.00019452,2]
[371544499,1752342672476,-151.0,0.00019452,2]
[371544500,1752342672485,-460.0,0.00019452,2]
[371544501,1752342672495,-754.13,0.00019452,2]
[371544502,1752342672505,-460.0,0.00019452,2]
[371544503,1752342672515,-2667.23,0.00019452,2]
[371544504,1752342672525,-618.79,0.00019452,2]
[371544505,1752342672535,-468.03,0.00019452,2]
[371544506,1752342672545,-469.56,0.00019452,2]
[371544507,1752342672555,-234.814105,0.00019452,2]
[371544508,1752342672564,-234.814105,0.00019452,2]
[371544509,1752342672573,-981.16,0.00019452,2]
[371544510,1752342672583,-460.0,0.00019452,2]
[371544511,1752342672593,-217.936345,0.00019452,2]
[371544512,1752342672603,-460.0,0.00019452,2]
[371544513,1752342672613,-151.0,0.00019452,2]
[371544514,1752342672622,-151.0,0.00019452,2]
[371544515,1752342672632,-460.0,0.00019452,2]
[371544516,1752342672642,-460.0,0.00019452,2]
[371544517,1752342672651,-460.0,0.00019452,2]
[371544518,1752342672661,-1433.31,0.00019452,2]
[371544519,1752342672671,-460.0,0.00019452,2]
[371544520,1752342672681,-509.58,0.00019452,2]
[371544521,1752342672691,-1827.60029057,0.00019455,2]
[371544522,1752342672701,-3000.0,0.00019512,2]
[371544523,1752342672711,-500.0,0.00019512,2]
[371544524,1752342672720,-500.0,0.00019548,2]
[371544525,1752342672729,-501.36560506,0.00019548,2]
[371544526,1752342672739,-151.0,0.000196,2]
[371544527,1752342672749,-5000.0,0.00019647,2]
[371544528,1752342672759,-1961.7256578,0.00019659,2]
[371544529,1752342672768,-460.0,0.00019726,2]
[371544530,1752342672778,-460.0,0.00019726,2]
[371544531,1752342672787,-498.78,0.00019726,2]
[371544532,1752342672797,-460.0,0.00019726,2]
[371544533,1752342672807,-460.0,0.00019726,2]
[371544534,1752342672817,-460.0,0.00019726,2]
[371544535,1752342672827,-553.18,0.00019726,2]
[371544536,1752342672837,-708.97,0.00019726,2]
[371544537,1752342672846,-648.84,0.00019726,2]
[371544538,1752342672856,-460.0,0.00019726,2]
[371544539,1752342672865,-460.0,0.00019726,2]
[371544540,1752342672876,-686.51,0.00019726,2]
[371544541,1752342672885,-460.0,0.00019726,2]
[371544542,1752342672895,-462.91,0.00019726,2]
[371544543,1752342672905,-179.32731101,0.00019726,2]
[371544544,1752342672915,-460.0,0.00019726,2]
[371544545,1752342672925,-687.54,0.00019726,2]
[371544546,1752342672934,-460.0,0.00019726,2]
[371544547,1752342672945,-753.34,0.00019726,2]
[371544548,1752342672956,-460.0,0.00019726,2]
[371544549,1752342672966,-303.61,0.00019726,2]
[371544550,1752342672976,-713.78,0.00019726,2]
[371544551,1752342672989,-460.0,0.00019726,2]
[371544552,1752342672999,-460.0,0.00019726,2]
[371544553,1752342673009,-700.82,0.00019726,2]
[371544554,1752342673019,-840.0,0.00019726,2]
[371544555,1752342673030,-5141.64,0.00019726,2]
[371544556,1752342673039,-460.0,0.00019726,2]
[371544557,1752342673050,-543.93316443,0.00019726,2]
[371544558,1752342673059,-460.0,0.00019726,2]
[371544559,1752342673070,-3105.07,0.00019726,2]
[371544560,1752342673081,-460.0,0.00019726,2]
[371544561,1752342673090,-460.0,0.00019726,2]
[371544562,1752342673100,-1400.32,0.00019726,2]
[371544563,1752342673109,-460.0,0.00019726,2]
[371544564,1752342673119,-460.0,0.00019726,2]
[371544565,1752342673129,-1824.88,0.00019726,2]
[371544566,1752342673139,-593.56,0.00019726,2]
[371544567,1752342673148,-460.0,0.00019726,2]
[371544568,1752342673158,-1262.74,0.00019726,2]
[371544569,1752342673167,-460.0,0.00019726,2]
[371544570,1752342673176,-1502.81,0.00019726,2]
[371544571,1752342673186,-784.23,0.00019726,2]
[371544572,1752342673197,-796.69,0.00019726,2]
[371544573,1752342673207,-460.0,0.00019726,2]
[371544574,1752342673217,-460.0,0.00019726,2]
[371544575,1752342673226,-460.0,0.00019726,2]
[371544576,1752342673236,-460.0,0.00019726,2]
[371544577,1752342673246,-460.0,0.00019726,2]
[371544578,1752342673255,-476.85,0.00019726,2]
[371544579,1752342673265,-460.0,0.00019726,2]
[371544580,1752342673275,-700.96,0.00019726,2]
[371544581,1752342673285,-484.14,0.00019726,2]
[371544582,1752342673295,-1811.02,0.00019726,2]
[371544583,1752342673304,-662.41,0.00019726,2]
[371544584,1752342673314,-460.0,0.00019726,2]
[371544585,1752342673323,-2662.91,0.00019726,2]
[371544586,1752342673332,-460.0,0.00019726,2]
[371544587,1752342673342,-460.0,0.00019726,2]
[371544588,1752342673352,-460.0,0.00019726,2]
[371544589,1752342673361,-663.87,0.00019726,2]
[371544590,1752342673370,-460.0,0.00019726,2]
[371544591,1752342673380,-460.0,0.00019726,2]
[371544592,1752342673389,-1174.19,0.00019726,2]
[371544593,1752342673399,-460.0,0.00019726,2]
[371544594,1752342673409,-524.87,0.00019726,2]
[371544595,1752342673418,-657.53,0.00019726,2]
[371544596,1752342673427,-2444.99,0.00019726,2]
[371544597,1752342673437,-460.0,0.00019726,2]
[371544598,1752342673448,-484.23,0.00019726,2]
[371544599,1752342673457,-4019.98,0.00019726,2]
[371544600,1752342673467,-460.0,0.00019726,2]
[371544601,1752342673476,-460.0,0.00019726,2]
[371544602,1752342673485,-460.0,0.00019726,2]
[371544603,1752342673494,-754.13,0.00019726,2]
[371544604,1752342673503,-460.0,0.00019726,2]
[371544605,1752342673512,-2667.23,0.00019726,2]
[371544606,1752342673522,-618.79,0.00019726,2]
[371544607,1752342673531,-468.03,0.00019726,2]
[371544608,1752342673541,-469.56,0.00019726,2]
[371544609,1752342673551,-981.16,0.00019726,2]
[371544610,1752342673560,-460.0,0.00019726,2]
[371544611,1752342673569,-460.0,0.00019726,2]
[371544612,1752342673580,-460.0,0.00019726,2]
[371544613,1752342673593,-460.0,0.00019726,2]
[371544614,1752342673603,-460.0,0.00019726,2]
[371544615,1752342673612,-1433.31,0.00019726,2]
[371544616,1752342673622,-460.0,0.00019726,2]
[371544617,1752342673632,-509.58,0.00019726,2]
[371544618,1752342673642,-1000.0,0.00019758,2]
[371544619,1752342673652,-500.0,0.00019758,2]
[371544620,1752342673661,-500.0,0.00019758,2]
[371544621,1752342673671,-501.9477108,0.00019758,2]
[371544622,1752342673681,-1000.0,0.00019758,2]
[371544623,1752342673691,-1000.0,0.00019758,2]
[371544624,1752342673700,-1000.0,0.00019758,2]
[371544625,1752342673710,-1000.0,0.00019758,2]
[371544626,1752342673719,-270.83,0.00019915,2]
[371544627,1752342673728,-1961.7256578,0.00019934,2]
[371544628,1752342673738,-151.0,0.0002,2]
[371544629,1752342673747,-151.0,0.0002,2]
[371544630,1752342673757,-460.0,0.0002,2]
[371544631,1752342673767,-90258.0,0.0002,2]
[371544632,1752342673777,-460.0,0.0002,2]
[371544633,1752342673786,-498.78,0.0002,2]
[371544634,1752342673796,-460.0,0.0002,2]
[371544635,1752342673805,-460.0,0.0002,2]
[371544636,1752342673814,-460.0,0.0002,2]
[371544637,1752342673824,-151.0,0.0002,2]
[371544638,1752342673833,-151.0,0.0002,2]
[371544639,1752342673843,-708.97,0.0002,2]
[371544640,1752342673852,-648.84,0.0002,2]
[371544641,1752342673862,-202.808266,0.0002,2]
[371544642,1752342673871,-202.808266,0.0002,2]
[371544643,1752342673880,-151.0,0.0002,2]
[371544644,1752342673889,-151.0,0.0002,2]
[371544645,1752342673898,-151.0,0.0002,2]
[371544646,1752342673908,-460.0,0.0002,2]
[371544647,1752342673917,-686.51,0.0002,2]
[371544648,1752342673927,-460.0,0.0002,2]
[371544649,1752342673937,-460.0,0.0002,2]
[371544650,1752342673948,-687.54,0.0002,2]
[371544651,1752342673958,-460.0,0.0002,2]
[371544652,1752342673968,-151.0,0.0002,2]
[371544653,1752342673977,-151.0,0.0002,2]
[371544654,1752342673988,-158.769012,0.0002,2]
[371544655,1752342673998,-753.34,0.0002,2]
[371544656,1752342674008,-713.78,0.0002,2]
[371544657,1752342674110,-460.0,0.0002,2]
[371544658,1752342674120,-460.0,0.0002,2]
[371544659,1752342674130,-700.82,0.0002,2]
[371544660,1752342674140,-840.0,0.0002,2]
[371544661,1752342674150,-5141.64,0.0002,2]
[371544662,1752342674160,-604.4,0.0002,2]
[371544663,1752342674169,-301.566349,0.0002,2]
[371544664,1752342674178,-301.566349,0.0002,2]
[371544665,1752342674188,-151.0,0.0002,2]
[371544666,1752342674198,-3105.07,0.0002,2]
[371544667,1752342674207,-460.0,0.0002,2]
[371544668,1752342674217,-460.0,0.0002,2]
[371544669,1752342674226,-1400.32,0.0002,2]
[371544670,1752342674236,-460.0,0.0002,2]
[371544671,1752342674245,-151.0,0.0002,2]
[371544672,1752342674255,-1824.88,0.0002,2]
[371544673,1752342674264,-593.56,0.0002,2]
[371544674,1752342674273,-460.0,0.0002,2]
[371544675,1752342674283,-1262.74,0.0002,2]
[371544676,1752342674293,-460.0,0.0002,2]
[371544677,1752342674313,-1502.81,0.0002,2]
[371544678,1752342674329,-784.23,0.0002,2]
[371544679,1752342674338,-151.0,0.0002,2]
[371544680,1752342674348,-796.69,0.0002,2]
[371544681,1752342674360,-151.0,0.0002,2]
[371544682,1752342674371,-460.0,0.0002,2]
[371544683,1752342674381,-460.0,0.0002,2]
[371544684,1752342674390,-460.0,0.0002,2]
[371544685,1752342674398,-460.0,0.0002,2]
[371544686,1752342674408,-151.0,0.0002,2]
[371544687,1752342674417,-460.0,0.0002,2]
[371544688,1752342674427,-476.85,0.0002,2]
[371544689,1752342674436,-460.0,0.0002,2]
[371544690,1752342674447,-700.96,0.0002,2]
[371544691,1752342674457,-484.14,0.0002,2]
[371544692,1752342674467,-1811.02,0.0002,2]
[371544693,1752342674477,-662.41,0.0002,2]
[371544694,1752342674486,-460.0,0.0002,2]
[371544695,1752342674496,-2662.91,0.0002,2]
[371544696,1752342674506,-460.0,0.0002,2]
[371544697,1752342674515,-460.0,0.0002,2]
[371544698,1752342674524,-460.0,0.0002,2]
[371544699,1752342674534,-663.87,0.0002,2]
[371544700,1752342674544,-460.0,0.0002,2]
[371544701,1752342674553,-460.0,0.0002,2]
[371544702,1752342674562,-1174.19,0.0002,2]
[371544703,1752342674572,-417.986802,0.0002,2]
[371544704,1752342674582,-460.0,0.0002,2]
[371544705,1752342674592,-524.87,0.0002,2]
[371544706,1752342674602,-657.53,0.0002,2]
[371544707,1752342674611,-417.986802,0.0002,2]
[371544708,1752342674621,-2444.99,0.0002,2]
[371544709,1752342674631,-484.23,0.0002,2]
[371544710,1752342674640,-4019.98,0.0002,2]
[371544711,1752342674650,-460.0,0.0002,2]
[371544712,1752342674659,-460.0,0.0002,2]
[371544713,1752342674669,-460.0,0.0002,2]
[371544714,1752342674678,-754.13,0.0002,2]
[371544715,1752342674688,-618.79,0.0002,2]
[371544716,1752342674698,-2667.23,0.0002,2]
[371544717,1752342674708,-468.03,0.0002,2]
[371544718,1752342674717,-469.56,0.0002,2]
[371544719,1752342674727,-981.16,0.0002,2]
[371544720,1752342674737,-460.0,0.0002,2]
[371544721,1752342674747,-460.0,0.0002,2]
[371544722,1752342674756,-575.57290686,0.0002,2]
[371544723,1752342674765,-460.0,0.0002,2]
[371544724,1752342674775,-460.0,0.0002,2]
[371544725,1752342674785,-1433.31,0.0002,2]
[371544726,1752342674796,-460.0,0.0002,2]
[371544727,1752342674806,-509.58,0.0002,2]
[371544728,1752342674816,-626.11862193,0.0002006,2]
[371544729,1752342674825,-1000.0,0.00020096,2]
[371544730,1752342674834,-1827.60029057,0.00020107,2]
[371544731,1752342674844,-1961.7256578,0.0002021,2]
[371544732,1752342674853,-460.0,0.00020273,2]
[371544733,1752342674863,-460.0,0.00020273,2]
[371544734,1752342674872,-498.78,0.00020273,2]
[371544735,1752342674882,-460.0,0.00020273,2]
[371544736,1752342674892,-460.0,0.00020273,2]
[371544737,1752342674902,-460.0,0.00020273,2]
[371544738,1752342674911,-708.97,0.00020273,2]
[371544739,1752342674921,-648.84,0.00020273,2]
[371544740,1752342674931,-460.0,0.00020273,2]
[371544741,1752342674941,-686.51,0.00020273,2]
[371544742,1752342674951,-460.0,0.00020273,2]
[371544743,1752342674961,-460.0,0.00020273,2]
[371544744,1752342674970,-687.54,0.00020273,2]
[371544745,1752342674980,-460.0,0.00020273,2]
[371544746,1752342674993,-753.34,0.00020273,2]
[371544747,1752342675003,-713.78,0.00020273,2]
[371544748,1752342675012,-460.0,0.00020273,2]
[371544749,1752342675022,-460.0,0.00020273,2]
[371544750,1752342675033,-700.82,0.00020273,2]
[371544751,1752342675043,-840.0,0.00020273,2]
[371544752,1752342675052,-5141.64,0.00020273,2]
[371544753,1752342675062,-3105.07,0.00020273,2]
[371544754,1752342675072,-460.0,0.00020273,2]
[371544755,1752342675082,-460.0,0.00020273,2]
[371544756,1752342675091,-1400.32,0.00020273,2]
[371544757,1752342675101,-460.0,0.00020273,2]
[371544758,1752342675111,-1824.88,0.00020273,2]
[371544759,1752342675121,-593.56,0.00020273,2]
[371544760,1752342675130,-460.0,0.00020273,2]
[371544761,1752342675140,-1262.74,0.00020273,2]
[371544762,1752342675150,-460.0,0.00020273,2]
[371544763,1752342675159,-1502.81,0.00020273,2]
[371544764,1752342675169,-784.23,0.00020273,2]
[371544765,1752342675179,-796.69,0.00020273,2]
[371544766,1752342675188,-460.0,0.00020273,2]
[371544767,1752342675199,-460.0,0.00020273,2]
[371544768,1752342675209,-460.0,0.00020273,2]
[371544769,1752342675219,-460.0,0.00020273,2]
[371544770,1752342675228,-476.85,0.00020273,2]
[371544771,1752342675238,-460.0,0.00020273,2]
[371544772,1752342675247,-700.96,0.00020273,2]
[371544773,1752342675256,-484.14,0.00020273,2]
[371544774,1752342675266,-1811.02,0.00020273,2]
[371544775,1752342675276,-662.41,0.00020273,2]
[371544776,1752342675285,-460.0,0.00020273,2]
[371544777,1752342675295,-2662.91,0.00020273,2]
[371544778,1752342675306,-580.92818793,0.00020273,2]
[371544779,1752342675316,-460.0,0.00020273,2]
[371544780,1752342675325,-460.0,0.00020273,2]
[371544781,1752342675335,-663.87,0.00020273,2]
[371544782,1752342675344,-460.0,0.00020273,2]
[371544783,1752342675353,-1174.19,0.00020273,2]
[371544784,1752342675363,-460.0,0.00020273,2]
[371544785,1752342675373,-460.0,0.00020273,2]
[371544786,1752342675382,-524.87,0.00020273,2]
[371544787,1752342675391,-657.53,0.00020273,2]
[371544788,1752342675401,-2444.99,0.00020273,2]
[371544789,1752342675410,-484.23,0.00020273,2]
[371544790,1752342675420,-4019.98,0.00020273,2]
[371544791,1752342675430,-460.0,0.00020273,2]
[371544792,1752342675439,-460.0,0.00020273,2]
[371544793,1752342675449,-216.37,0.00020273,2]
[371544794,1752342675459,-754.13,0.00020273,2]
[371544795,1752342675468,-2667.23,0.00020273,2]